[Event "*** Titled Tuesday Blitz"]
[Site "Chess.com"]
[Date "2020.04.07"]
[Round "6"]
[White "DishonorOnYourCow"]
[Black "Unknown_IM"]
[Result "0-1"]
[WhiteElo "2330"]
[BlackElo "2555"]
[TimeControl "180+1"]
[EndTime "14:07:42 PDT"]
[Termination "Unknown_IM won by resignation"]

1. d4 {[%clk 0:03:00.9]} 1... d5 {[%clk 0:02:59.6]} 2. c4 {[%clk 0:03:00.9]}
2... c6 {[%clk 0:03:00]} 3. Nf3 {[%clk 0:03:00.4]} 3... Nf6 {[%clk 0:03:00.6]}
4. e3 {[%clk 0:03:00.7]} 4... e6 {[%clk 0:02:59.6]} 5. b3 {[%clk 0:03:00.7]}
5... c5 {[%clk 0:03:00]} 6. Bb2 {[%clk 0:03:01.3]} 6... cxd4 {[%clk 0:02:59.1]}
7. exd4 {[%clk 0:03:02.2]} 7... b6 {[%clk 0:02:58.5]} 8. Nbd2 {[%clk 0:03:01.3]}
8... Bb7 {[%clk 0:02:58.9]} 9. Bd3 {[%clk 0:02:58.9]} 9... Nbd7 {[%clk
0:02:59.1]} 10. O-O {[%clk 0:02:58.4]} 10... Bd6 {[%clk 0:02:54.9]} 11. Ne5
{[%clk 0:02:42.5]} 11... O-O {[%clk 0:02:54.7]} 12. Qf3 {[%clk 0:02:36.9]} 12...
dxc4 {[%clk 0:02:33.6]} 13. Qxb7 {[%clk 0:02:35.6]} 13... cxd3 {[%clk
0:02:32.5]} 14. Ndc4 {[%clk 0:02:32.4]} 14... Bxe5 {[%clk 0:02:04.8]} 15. dxe5
{[%clk 0:02:33.3]} 15... Nd5 {[%clk 0:02:04.2]} 16. Nd6 {[%clk 0:02:06.7]} 16...
Nc5 {[%clk 0:01:43.3]} 17. Qc6 {[%clk 0:02:04.2]} 17... Qg5 {[%clk 0:01:41.8]}
18. b4 {[%clk 0:01:58]} 18... Nxb4 {[%clk 0:01:38]} 19. Ne4 {[%clk 0:01:37.4]}
19... Qg6 {[%clk 0:01:09.7]} 20. Qb5 {[%clk 0:01:06.3]} 20... Qxe4 {[%clk
0:01:09.2]} 21. Rae1 {[%clk 0:01:01.6]} 21... Qh4 {[%clk 0:01:03]} 22. g3 {[%clk
0:01:00.2]} 22... Qg4 {[%clk 0:00:57.2]} 23. f3 {[%clk 0:00:59.9]} 23... a6
{[%clk 0:00:54.7]} 24. Qxb6 {[%clk 0:00:44.6]} 24... Qc4 {[%clk 0:00:53.4]} 25.
Ba3 {[%clk 0:00:31.3]} 25... a5 {[%clk 0:00:48.9]} 26. Rc1 {[%clk 0:00:25.2]}
26... Qd4+ {[%clk 0:00:47.8]} 27. Kh1 {[%clk 0:00:25.3]} 27... Nb3 {[%clk
0:00:47.6]} 28. Qxd4 {[%clk 0:00:19.7]} 28... Nxd4 {[%clk 0:00:48.5]} 29. Rfd1
{[%clk 0:00:16.9]} 29... Ndc2 {[%clk 0:00:47.2]} 30. Bxb4 {[%clk 0:00:15.3]}
30... Nxb4 {[%clk 0:00:48.1]} 31. a3 {[%clk 0:00:15.5]} 31... Nd5 {[%clk
0:00:44.6]} 32. Rxd3 {[%clk 0:00:15.6]} 32... Rfc8 {[%clk 0:00:45.1]} 33. Rb1
{[%clk 0:00:14]} 33... h6 {[%clk 0:00:44]} 34. f4 {[%clk 0:00:13.5]} 34... Rc7
{[%clk 0:00:43.1]} 35. f5 {[%clk 0:00:13.7]} 35... Rac8 {[%clk 0:00:43.5]} 36.
fxe6 {[%clk 0:00:13.5]} 36... fxe6 {[%clk 0:00:44.4]} 37. Rb5 {[%clk 0:00:12.5]}
37... Rc5 {[%clk 0:00:44.3]} 38. Rb7 {[%clk 0:00:11.4]} 38... R8c7 {[%clk
0:00:44.4]} 39. Rb8+ {[%clk 0:00:10.4]} 39... Kh7 {[%clk 0:00:44.9]} 40. Rdb3
{[%clk 0:00:10.6]} 40... a4 {[%clk 0:00:43.4]} 41. Rf3 {[%clk 0:00:08.3]} 41...
Rc2 {[%clk 0:00:40.3]} 42. Rff8 {[%clk 0:00:06.8]} 42... Ne3 {[%clk 0:00:39.3]}
43. h4 {[%clk 0:00:06.1]} 43... Re2 {[%clk 0:00:36.7]} 44. h5 {[%clk 0:00:04.8]}
44... Rc1+ {[%clk 0:00:35.6]} 0-1

[Event "*** Titled Tuesday Blitz"]
[Site "Chess.com"]
[Date "2020.04.07"]
[Round "6"]
[White "dusanacns"]
[Black "AnonymousBread"]
[Result "1/2-1/2"]
[WhiteElo "2726"]
[BlackElo "2531"]
[TimeControl "180+1"]
[EndTime "14:07:43 PDT"]
[Termination "Game drawn by repetition"]

1. e4 {[%clk 0:03:00.9]} 1... e5 {[%clk 0:03:00.2]} 2. Nf3 {[%clk 0:03:00.2]}
2... Nc6 {[%clk 0:02:52.8]} 3. Bc4 {[%clk 0:02:56]} 3... Bc5 {[%clk 0:02:52.6]}
4. c3 {[%clk 0:02:55.7]} 4... Nf6 {[%clk 0:02:52.9]} 5. d3 {[%clk 0:02:55.8]}
5... d6 {[%clk 0:02:52.9]} 6. h3 {[%clk 0:02:55]} 6... h6 {[%clk 0:02:52.1]} 7.
Nbd2 {[%clk 0:02:55.1]} 7... a6 {[%clk 0:02:48.4]} 8. Bb3 {[%clk 0:02:54.6]}
8... Be6 {[%clk 0:02:45.2]} 9. Nf1 {[%clk 0:02:37.9]} 9... d5 {[%clk 0:02:42.7]}
10. Qe2 {[%clk 0:02:37.4]} 10... O-O {[%clk 0:02:37.3]} 11. Ng3 {[%clk
0:02:34.9]} 11... Re8 {[%clk 0:02:36.9]} 12. Nh2 {[%clk 0:02:28.7]} 12... Bf8
{[%clk 0:02:33.5]} 13. Ng4 {[%clk 0:02:18.7]} 13... Nxg4 {[%clk 0:01:58.2]} 14.
hxg4 {[%clk 0:02:19.6]} 14... Qd7 {[%clk 0:01:57.7]} 15. g5 {[%clk 0:02:05.5]}
15... dxe4 {[%clk 0:01:51.4]} 16. dxe4 {[%clk 0:01:51]} 16... Bxb3 {[%clk
0:01:48.7]} 17. axb3 {[%clk 0:01:51.3]} 17... hxg5 {[%clk 0:01:24]} 18. Bxg5
{[%clk 0:01:49.1]} 18... f6 {[%clk 0:01:22.6]} 19. Be3 {[%clk 0:01:44]} 19...
Qf7 {[%clk 0:01:19.3]} 20. b4 {[%clk 0:01:37.5]} 20... Rad8 {[%clk 0:01:15.9]}
21. Nf5 {[%clk 0:01:33.3]} 21... Ne7 {[%clk 0:01:13.9]} 22. Qg4 {[%clk
0:00:57.9]} 22... Nxf5 {[%clk 0:01:09.5]} 23. exf5 {[%clk 0:00:57.4]} 23... Qb3
{[%clk 0:00:37.9]} 24. Rb1 {[%clk 0:00:20.6]} 24... e4 {[%clk 0:00:36.7]} 25.
Qh5 {[%clk 0:00:15.3]} 25... Qc2 {[%clk 0:00:34.8]} 26. Qh7+ {[%clk 0:00:13.9]}
26... Kf7 {[%clk 0:00:35.2]} 27. Qg6+ {[%clk 0:00:13.9]} 27... Kg8 {[%clk
0:00:35.7]} 28. Rc1 {[%clk 0:00:11.8]} 28... Qxb2 {[%clk 0:00:29.6]} 29. Rh7
{[%clk 0:00:11.9]} 29... Rd3 {[%clk 0:00:20.4]} 30. Qh5 {[%clk 0:00:11]} 30...
Rxe3+ {[%clk 0:00:20.6]} 31. fxe3 {[%clk 0:00:09.9]} 31... Qxc1+ {[%clk
0:00:20.8]} 32. Ke2 {[%clk 0:00:09.8]} 32... Qc2+ {[%clk 0:00:16.6]} 33. Kf1
{[%clk 0:00:09.4]} 33... Qc1+ {[%clk 0:00:16.7]} 34. Kf2 {[%clk 0:00:09]} 34...
Qd2+ {[%clk 0:00:17]} 35. Kf1 {[%clk 0:00:09.3]} 35... Qc1+ {[%clk 0:00:17.3]}
36. Kf2 {[%clk 0:00:09.2]} 36... Qd2+ {[%clk 0:00:18]} 37. Kf1 {[%clk
0:00:07.3]} 37... Qc1+ {[%clk 0:00:18]} 1/2-1/2

[Event "*** Titled Tuesday Blitz"]
[Site "Chess.com"]
[Date "2020.04.07"]
[Round "6"]
[White "AshotParvanyan"]
[Black "2L8IWUN"]
[Result "0-1"]
[WhiteElo "2518"]
[BlackElo "2382"]
[TimeControl "180+1"]
[EndTime "14:07:47 PDT"]
[Termination "2L8IWUN won by resignation"]

1. e4 {[%clk 0:03:00.9]} 1... c5 {[%clk 0:02:59.8]} 2. Nf3 {[%clk 0:03:00.6]}
2... d6 {[%clk 0:03:00.4]} 3. Nc3 {[%clk 0:03:00.7]} 3... Nc6 {[%clk 0:03:00]}
4. Bc4 {[%clk 0:02:57.6]} 4... Nf6 {[%clk 0:02:58.3]} 5. O-O {[%clk 0:02:57.7]}
5... e6 {[%clk 0:02:58.8]} 6. d3 {[%clk 0:02:53.6]} 6... Be7 {[%clk 0:02:58.9]}
7. a3 {[%clk 0:02:53.8]} 7... a6 {[%clk 0:02:59.1]} 8. Re1 {[%clk 0:02:49]} 8...
h6 {[%clk 0:02:59.5]} 9. h3 {[%clk 0:02:48.3]} 9... O-O {[%clk 0:02:59.9]} 10.
Rb1 {[%clk 0:02:48.6]} 10... b5 {[%clk 0:03:00]} 11. Ba2 {[%clk 0:02:48.3]}
11... b4 {[%clk 0:02:59.5]} 12. Ne2 {[%clk 0:02:46.3]} 12... a5 {[%clk
0:02:58.9]} 13. Bc4 {[%clk 0:02:44.5]} 13... Rb8 {[%clk 0:02:55.1]} 14. Be3
{[%clk 0:02:41.2]} 14... Bd7 {[%clk 0:02:28.8]} 15. a4 {[%clk 0:02:37.6]} 15...
Ne8 {[%clk 0:02:17.1]} 16. Ng3 {[%clk 0:02:35.6]} 16... Nc7 {[%clk 0:02:14.9]}
17. d4 {[%clk 0:02:34.3]} 17... d5 {[%clk 0:02:07.7]} 18. exd5 {[%clk
0:02:32.6]} 18... exd5 {[%clk 0:02:08.6]} 19. Bd3 {[%clk 0:02:27.1]} 19... c4
{[%clk 0:02:03.5]} 20. Bf5 {[%clk 0:02:25.8]} 20... Bd6 {[%clk 0:01:59.3]} 21.
Bxd7 {[%clk 0:02:12.5]} 21... Qxd7 {[%clk 0:02:00.2]} 22. Qd2 {[%clk 0:02:03.5]}
22... f5 {[%clk 0:01:32.4]} 23. Bf4 {[%clk 0:02:02.1]} 23... Bxf4 {[%clk
0:01:26.5]} 24. Qxf4 {[%clk 0:02:03]} 24... Ne6 {[%clk 0:01:24.8]} 25. Qd2
{[%clk 0:01:55.2]} 25... Rbe8 {[%clk 0:01:20.7]} 26. Ne5 {[%clk 0:01:54.1]}
26... Nxe5 {[%clk 0:01:17.5]} 27. Rxe5 {[%clk 0:01:53.9]} 27... f4 {[%clk
0:01:16.1]} 28. Nf5 {[%clk 0:01:42.6]} 28... f3 {[%clk 0:01:13.7]} 29. Rbe1
{[%clk 0:01:40.8]} 29... Ng5 {[%clk 0:01:10.8]} 30. Qf4 {[%clk 0:00:53.1]} 30...
fxg2 {[%clk 0:01:03.2]} 31. Kxg2 {[%clk 0:00:52.8]} 31... Rxe5 {[%clk
0:01:00.7]} 32. Rxe5 {[%clk 0:00:51.5]} 32... Ne6 {[%clk 0:00:58.6]} 33. Qg4
{[%clk 0:00:48.9]} 33... Rf6 {[%clk 0:00:51.9]} 34. Kf1 {[%clk 0:00:28.1]} 34...
Qf7 {[%clk 0:00:43.7]} 35. Rxd5 {[%clk 0:00:18.5]} 35... Kh7 {[%clk 0:00:42.8]}
36. Re5 {[%clk 0:00:17.5]} 36... g6 {[%clk 0:00:38.9]} 37. Ng3 {[%clk
0:00:14.7]} 37... Rxf2+ {[%clk 0:00:38.3]} 38. Kg1 {[%clk 0:00:15.2]} 38... Rxc2
{[%clk 0:00:34.5]} 39. Ne4 {[%clk 0:00:14.3]} 39... Rc1+ {[%clk 0:00:31.2]} 40.
Kh2 {[%clk 0:00:14.6]} 40... Qf1 {[%clk 0:00:27.7]} 41. Rxe6 {[%clk 0:00:06.6]}
41... Rc2+ {[%clk 0:00:25.4]} 42. Kg3 {[%clk 0:00:06.7]} 42... Rg2+ {[%clk
0:00:25.8]} 43. Kh4 {[%clk 0:00:07]} 43... Rxg4+ {[%clk 0:00:25.8]} 44. Kxg4
{[%clk 0:00:06.5]} 44... Qf5+ {[%clk 0:00:23.4]} 45. Kg3 {[%clk 0:00:06.5]}
45... Qxe6 {[%clk 0:00:21.7]} 0-1

[Event "*** Titled Tuesday Blitz"]
[Site "Chess.com"]
[Date "2020.04.07"]
[Round "6"]
[White "Pavlov_Sergey"]
[Black "platy3"]
[Result "1-0"]
[WhiteElo "2562"]
[BlackElo "2782"]
[TimeControl "180+1"]
[EndTime "14:07:48 PDT"]
[Termination "Pavlov_Sergey won by checkmate"]

1. c4 {[%clk 0:03:00.9]} 1... Nf6 {[%clk 0:02:59.4]} 2. Nf3 {[%clk 0:02:58.4]}
2... e6 {[%clk 0:02:58]} 3. g3 {[%clk 0:02:58.7]} 3... d5 {[%clk 0:02:58.3]} 4.
Bg2 {[%clk 0:02:59]} 4... d4 {[%clk 0:02:58.9]} 5. O-O {[%clk 0:02:58.4]} 5...
c5 {[%clk 0:02:59.4]} 6. e3 {[%clk 0:02:58.6]} 6... Nc6 {[%clk 0:03:00]} 7. exd4
{[%clk 0:02:59.1]} 7... cxd4 {[%clk 0:03:00.7]} 8. d3 {[%clk 0:02:59.7]} 8...
Bd6 {[%clk 0:03:01.4]} 9. Bg5 {[%clk 0:02:55.1]} 9... h6 {[%clk 0:03:01.9]} 10.
Bxf6 {[%clk 0:02:54.8]} 10... Qxf6 {[%clk 0:03:02.8]} 11. Nbd2 {[%clk
0:02:48.7]} 11... Qe7 {[%clk 0:03:02.7]} 12. Ne4 {[%clk 0:02:47.4]} 12... Bc7
{[%clk 0:03:02.7]} 13. a3 {[%clk 0:02:38.4]} 13... a5 {[%clk 0:03:03.3]} 14. Rb1
{[%clk 0:02:38.2]} 14... O-O {[%clk 0:03:03.3]} 15. Re1 {[%clk 0:02:33.8]} 15...
Rd8 {[%clk 0:03:00.3]} 16. Re2 {[%clk 0:02:14.8]} 16... f5 {[%clk 0:02:54.8]}
17. Ned2 {[%clk 0:02:13.8]} 17... e5 {[%clk 0:02:55.3]} 18. Nh4 {[%clk
0:02:11.5]} 18... Qf6 {[%clk 0:02:55]} 19. b4 {[%clk 0:02:01.2]} 19... axb4
{[%clk 0:02:54.9]} 20. axb4 {[%clk 0:02:01.3]} 20... e4 {[%clk 0:02:40.6]} 21.
dxe4 {[%clk 0:01:51.4]} 21... d3 {[%clk 0:02:41.2]} 22. Re3 {[%clk 0:01:46.3]}
22... f4 {[%clk 0:02:41.6]} 23. Re1 {[%clk 0:01:28.5]} 23... Nd4 {[%clk
0:02:41.8]} 24. e5 {[%clk 0:01:20.2]} 24... Ne2+ {[%clk 0:02:30]} 25. Kh1 {[%clk
0:01:16]} 25... Qxe5 {[%clk 0:02:29.6]} 26. Ne4 {[%clk 0:01:05.1]} 26... Bg4
{[%clk 0:02:22.1]} 27. f3 {[%clk 0:01:01.2]} 27... Be6 {[%clk 0:02:14.3]} 28.
Ng6 {[%clk 0:00:50.9]} 28... Qh5 {[%clk 0:02:12.1]} 29. Ne7+ {[%clk 0:00:48.1]}
29... Kf7 {[%clk 0:02:02.5]} 30. g4 {[%clk 0:00:47.1]} 30... Qh4 {[%clk
0:02:02.4]} 31. Nd5 {[%clk 0:00:38.7]} 31... Bxd5 {[%clk 0:01:34.1]} 32. cxd5
{[%clk 0:00:37.2]} 32... Rxd5 {[%clk 0:01:35]} 33. Rxe2 {[%clk 0:00:36.4]} 33...
Rad8 {[%clk 0:00:58.1]} 34. Rd2 {[%clk 0:00:33.8]} 34... Kg8 {[%clk 0:00:58.5]}
35. Rb3 {[%clk 0:00:29.8]} 35... Bb6 {[%clk 0:00:56.8]} 36. Rbxd3 {[%clk
0:00:27.9]} 36... Rxd3 {[%clk 0:00:52.1]} 37. Rxd3 {[%clk 0:00:28.2]} 37... Rc8
{[%clk 0:00:50.5]} 38. Nd6 {[%clk 0:00:23]} 38... Ra8 {[%clk 0:00:30.1]} 39. Nf5
{[%clk 0:00:21.1]} 39... Qf2 {[%clk 0:00:30.2]} 40. Rd2 {[%clk 0:00:21.1]} 40...
Ra1 {[%clk 0:00:14]} 41. Qxa1 {[%clk 0:00:20.5]} 41... Qxd2 {[%clk 0:00:14.3]}
42. Qxg7# {[%clk 0:00:20.2]} 1-0

[Event "*** Titled Tuesday Blitz"]
[Site "Chess.com"]
[Date "2020.04.07"]
[Round "6"]
[White "AyMitecK"]
[Black "pastouche06"]
[Result "0-1"]
[WhiteElo "2290"]
[BlackElo "2466"]
[TimeControl "180+1"]
[EndTime "14:07:50 PDT"]
[Termination "pastouche06 won on time"]

1. e4 {[%clk 0:02:55.8]} 1... c6 {[%clk 0:02:59.8]} 2. Ne2 {[%clk 0:02:55.6]}
2... d5 {[%clk 0:03:00.7]} 3. e5 {[%clk 0:02:56.2]} 3... c5 {[%clk 0:02:57]} 4.
d4 {[%clk 0:02:55.5]} 4... cxd4 {[%clk 0:02:54.1]} 5. Nxd4 {[%clk 0:02:52.2]}
5... e6 {[%clk 0:02:54.4]} 6. c3 {[%clk 0:02:44.4]} 6... Nc6 {[%clk 0:02:53.2]}
7. f4 {[%clk 0:02:28.9]} 7... Nxd4 {[%clk 0:02:20.8]} 8. cxd4 {[%clk 0:02:25.4]}
8... Ne7 {[%clk 0:02:17.2]} 9. Bd3 {[%clk 0:02:19.7]} 9... Nc6 {[%clk
0:02:16.7]} 10. Be3 {[%clk 0:01:53.4]} 10... Qb6 {[%clk 0:02:14]} 11. Qd2 {[%clk
0:01:49.7]} 11... Bd7 {[%clk 0:01:58.9]} 12. Bc2 {[%clk 0:01:35.5]} 12... Nb4
{[%clk 0:01:50.6]} 13. Nc3 {[%clk 0:01:31.5]} 13... Nxc2+ {[%clk 0:01:42.4]} 14.
Qxc2 {[%clk 0:01:31.1]} 14... g6 {[%clk 0:01:37.4]} 15. O-O {[%clk 0:01:28.1]}
15... Rc8 {[%clk 0:01:33.4]} 16. a3 {[%clk 0:01:14.9]} 16... Be7 {[%clk
0:01:24.7]} 17. Qd2 {[%clk 0:01:09.1]} 17... Qb3 {[%clk 0:00:49.7]} 18. Rfc1
{[%clk 0:00:44]} 18... O-O {[%clk 0:00:47.9]} 19. g4 {[%clk 0:00:41.2]} 19... f5
{[%clk 0:00:41.4]} 20. h3 {[%clk 0:00:38.5]} 20... Rc4 {[%clk 0:00:38.2]} 21.
Kg2 {[%clk 0:00:33.8]} 21... Rfc8 {[%clk 0:00:31.4]} 22. gxf5 {[%clk 0:00:26.2]}
22... gxf5 {[%clk 0:00:30.9]} 23. Kf2 {[%clk 0:00:20.9]} 23... Kh8 {[%clk
0:00:30.6]} 24. Rg1 {[%clk 0:00:17.8]} 24... Ba4 {[%clk 0:00:24.5]} 25. Rgc1
{[%clk 0:00:17]} 25... Rg8 {[%clk 0:00:19.6]} 26. Ne2 {[%clk 0:00:11.3]} 26...
Bb5 {[%clk 0:00:18.5]} 27. Rxc4 {[%clk 0:00:09.8]} 27... Bxc4 {[%clk 0:00:17.5]}
28. Nc1 {[%clk 0:00:10.1]} 28... Bh4+ {[%clk 0:00:17.4]} 29. Kf3 {[%clk
0:00:07.9]} 29... Qb5 {[%clk 0:00:15.8]} 30. Bf2 {[%clk 0:00:05.8]} 30... Be7
{[%clk 0:00:11.1]} 31. b4 {[%clk 0:00:03.3]} 31... Bf1 {[%clk 0:00:10.8]} 32.
Ne2 {[%clk 0:00:02.1]} 32... Bxh3 {[%clk 0:00:09.9]} 33. Ke3 {[%clk 0:00:02.2]}
33... Bg4 {[%clk 0:00:09.8]} 34. Rh1 {[%clk 0:00:02.5]} 34... Rc8 {[%clk
0:00:09]} 35. Nc3 {[%clk 0:00:01.9]} 35... Qc4 {[%clk 0:00:08.5]} 36. Nd1 {[%clk
0:00:01.3]} 36... Qb3+ {[%clk 0:00:08.2]} 0-1

[Event "*** Titled Tuesday Blitz"]
[Site "Chess.com"]
[Date "2020.04.07"]
[Round "6"]
[White "Lony7"]
[Black "aa175"]
[Result "0-1"]
[WhiteElo "2358"]
[BlackElo "2268"]
[TimeControl "180+1"]
[EndTime "14:07:51 PDT"]
[Termination "aa175 won on time"]

1. e4 {[%clk 0:03:00.9]} 1... c5 {[%clk 0:02:58.2]} 2. Nf3 {[%clk 0:03:00.7]}
2... d6 {[%clk 0:02:58.4]} 3. Bb5+ {[%clk 0:03:01.3]} 3... Nd7 {[%clk
0:02:58.1]} 4. Ba4 {[%clk 0:03:00.9]} 4... a6 {[%clk 0:02:56.6]} 5. c4 {[%clk
0:03:00.6]} 5... Nf6 {[%clk 0:02:56.2]} 6. Nc3 {[%clk 0:03:00.4]} 6... e5 {[%clk
0:02:54.9]} 7. O-O {[%clk 0:02:59.3]} 7... g6 {[%clk 0:02:55.2]} 8. d3 {[%clk
0:02:59.3]} 8... Bg7 {[%clk 0:02:55.1]} 9. h3 {[%clk 0:02:59.2]} 9... O-O {[%clk
0:02:55.2]} 10. Rb1 {[%clk 0:02:59]} 10... a5 {[%clk 0:02:42.1]} 11. a3 {[%clk
0:02:56.2]} 11... b6 {[%clk 0:02:40.8]} 12. Be3 {[%clk 0:02:52.5]} 12... Bb7
{[%clk 0:02:29.6]} 13. b4 {[%clk 0:02:51.5]} 13... axb4 {[%clk 0:02:30.5]} 14.
axb4 {[%clk 0:02:52.4]} 14... Qc8 {[%clk 0:02:26.3]} 15. Qb3 {[%clk 0:02:05.3]}
15... Bc6 {[%clk 0:02:09.3]} 16. Bxc6 {[%clk 0:01:58.8]} 16... Qxc6 {[%clk
0:02:09.5]} 17. Ra1 {[%clk 0:01:57.4]} 17... Rxa1 {[%clk 0:02:01.7]} 18. Rxa1
{[%clk 0:01:56.7]} 18... Ra8 {[%clk 0:02:01.1]} 19. Ra3 {[%clk 0:01:52.9]} 19...
Ne8 {[%clk 0:01:55.6]} 20. b5 {[%clk 0:01:45.5]} 20... Qb7 {[%clk 0:01:55.2]}
21. Nd5 {[%clk 0:01:42.1]} 21... Nc7 {[%clk 0:01:36.6]} 22. Rxa8+ {[%clk
0:01:39.5]} 22... Nxa8 {[%clk 0:01:33.6]} 23. Qa4 {[%clk 0:01:28.5]} 23... Nc7
{[%clk 0:01:33.3]} 24. Ne7+ {[%clk 0:01:26]} 24... Kf8 {[%clk 0:01:12.1]} 25.
Nc6 {[%clk 0:01:25.9]} 25... Nb8 {[%clk 0:01:00.7]} 26. Nd2 {[%clk 0:00:36]}
26... Nxc6 {[%clk 0:00:53.8]} 27. bxc6 {[%clk 0:00:35.9]} 27... Qa6 {[%clk
0:00:50.8]} 28. Qxa6 {[%clk 0:00:35.9]} 28... Nxa6 {[%clk 0:00:51.7]} 29. Nb1
{[%clk 0:00:35.7]} 29... Ke8 {[%clk 0:00:48]} 30. Nc3 {[%clk 0:00:26]} 30... Nb4
{[%clk 0:00:16.5]} 31. Nb5 {[%clk 0:00:20.1]} 31... Bf8 {[%clk 0:00:11.5]} 32.
Na7 {[%clk 0:00:02.8]} 32... Kd8 {[%clk 0:00:06.6]} 0-1

[Event "*** Titled Tuesday Blitz"]
[Site "Chess.com"]
[Date "2020.04.07"]
[Round "6"]
[White "Vojtastr"]
[Black "Faqade"]
[Result "0-1"]
[WhiteElo "2483"]
[BlackElo "2609"]
[TimeControl "180+1"]
[EndTime "14:07:52 PDT"]
[Termination "Faqade won by resignation"]

1. c4 {[%clk 0:03:00.9]} 1... Nf6 {[%clk 0:02:58.6]} 2. Nc3 {[%clk 0:03:00.5]}
2... g6 {[%clk 0:02:59.5]} 3. e4 {[%clk 0:03:00.1]} 3... d6 {[%clk 0:03:00.1]}
4. d4 {[%clk 0:02:59.8]} 4... Bg7 {[%clk 0:03:00.6]} 5. Nf3 {[%clk 0:02:59.7]}
5... O-O {[%clk 0:03:01.1]} 6. Be2 {[%clk 0:03:00.2]} 6... c6 {[%clk 0:03:00.6]}
7. Bg5 {[%clk 0:02:56.7]} 7... h6 {[%clk 0:03:00]} 8. Bh4 {[%clk 0:02:56.5]}
8... a6 {[%clk 0:02:59]} 9. O-O {[%clk 0:02:53.3]} 9... b5 {[%clk 0:02:58.5]}
10. a3 {[%clk 0:02:53.6]} 10... Nbd7 {[%clk 0:02:57.3]} 11. Re1 {[%clk
0:02:46.2]} 11... e5 {[%clk 0:02:51.3]} 12. d5 {[%clk 0:02:40.1]} 12... cxd5
{[%clk 0:02:42.7]} 13. cxd5 {[%clk 0:02:41]} 13... Nb6 {[%clk 0:02:34.6]} 14.
Nd2 {[%clk 0:02:35.4]} 14... Bd7 {[%clk 0:02:31.7]} 15. Rc1 {[%clk 0:02:23.1]}
15... Rc8 {[%clk 0:02:29.7]} 16. b4 {[%clk 0:02:11.3]} 16... Qe7 {[%clk
0:02:10.6]} 17. Qb3 {[%clk 0:01:54.4]} 17... Rc7 {[%clk 0:02:03.3]} 18. Na2
{[%clk 0:01:45.6]} 18... Rfc8 {[%clk 0:02:00.8]} 19. Rxc7 {[%clk 0:01:46.2]}
19... Rxc7 {[%clk 0:02:01.7]} 20. Rc1 {[%clk 0:01:46.8]} 20... Qd8 {[%clk
0:01:34.4]} 21. f3 {[%clk 0:01:37.3]} 21... Na4 {[%clk 0:01:31.5]} 22. Bf2
{[%clk 0:01:28]} 22... h5 {[%clk 0:01:30.8]} 23. Nb1 {[%clk 0:01:19.2]} 23...
Rxc1+ {[%clk 0:01:24.3]} 24. Nxc1 {[%clk 0:01:20.1]} 24... Qc7 {[%clk
0:01:17.8]} 25. Na2 {[%clk 0:01:19.4]} 25... Bh6 {[%clk 0:01:16.2]} 26. Nac3
{[%clk 0:01:11.5]} 26... Ne8 {[%clk 0:00:47.2]} 27. Kf1 {[%clk 0:01:09.8]} 27...
Bf4 {[%clk 0:00:38.2]} 28. g3 {[%clk 0:01:09.5]} 28... Bg5 {[%clk 0:00:37.2]}
29. Nxa4 {[%clk 0:00:58.6]} 29... bxa4 {[%clk 0:00:38.1]} 30. Qc4 {[%clk
0:00:52.1]} 30... Qxc4 {[%clk 0:00:31.9]} 31. Bxc4 {[%clk 0:00:53]} 31... Nc7
{[%clk 0:00:31.3]} 32. Nc3 {[%clk 0:00:50.4]} 32... Bc1 {[%clk 0:00:29.7]} 33.
Bb6 {[%clk 0:00:39.6]} 33... Nb5 {[%clk 0:00:29.4]} 34. Bxb5 {[%clk 0:00:28.7]}
34... Bxb5+ {[%clk 0:00:28.5]} 35. Nxb5 {[%clk 0:00:28.5]} 35... axb5 {[%clk
0:00:29.4]} 36. Bc7 {[%clk 0:00:29.4]} 36... Bxa3 {[%clk 0:00:29.3]} 37. Bxd6
{[%clk 0:00:27.7]} 37... Bb2 {[%clk 0:00:29.7]} 38. Be7 {[%clk 0:00:25.7]} 38...
f5 {[%clk 0:00:20.5]} 39. d6 {[%clk 0:00:21.2]} 39... Kf7 {[%clk 0:00:20.3]} 0-1

[Event "*** Titled Tuesday Blitz"]
[Site "Chess.com"]
[Date "2020.04.07"]
[Round "6"]
[White "Schachspielerr"]
[Black "Mikhail_Golubev"]
[Result "0-1"]
[WhiteElo "2698"]
[BlackElo "2528"]
[TimeControl "180+1"]
[EndTime "14:07:53 PDT"]
[Termination "Mikhail_Golubev won by resignation"]

1. d4 {[%clk 0:03:00.9]} 1... Nf6 {[%clk 0:02:59.4]} 2. c4 {[%clk 0:03:01.8]}
2... g6 {[%clk 0:02:59.5]} 3. Nc3 {[%clk 0:02:52.9]} 3... Bg7 {[%clk 0:02:59.8]}
4. e4 {[%clk 0:02:53.4]} 4... d6 {[%clk 0:02:59.9]} 5. f3 {[%clk 0:02:53.9]}
5... O-O {[%clk 0:02:59.5]} 6. Be3 {[%clk 0:02:54.5]} 6... a6 {[%clk 0:02:59.2]}
7. Qd2 {[%clk 0:02:42.4]} 7... Nbd7 {[%clk 0:02:53.8]} 8. Nh3 {[%clk 0:02:40.9]}
8... c5 {[%clk 0:02:35.3]} 9. d5 {[%clk 0:02:38.2]} 9... Ne5 {[%clk 0:02:32]}
10. Nf2 {[%clk 0:02:37.6]} 10... b5 {[%clk 0:02:32.1]} 11. cxb5 {[%clk
0:02:38.5]} 11... axb5 {[%clk 0:02:32]} 12. Bxb5 {[%clk 0:02:39.4]} 12... Ba6
{[%clk 0:02:30.5]} 13. Bxa6 {[%clk 0:02:39.1]} 13... Rxa6 {[%clk 0:02:30.6]} 14.
Qe2 {[%clk 0:02:39.6]} 14... Qa5 {[%clk 0:02:12.5]} 15. O-O {[%clk 0:02:39.1]}
15... Rb8 {[%clk 0:02:11.8]} 16. Rab1 {[%clk 0:02:32.5]} 16... Rab6 {[%clk
0:02:07.8]} 17. Rfc1 {[%clk 0:02:27.9]} 17... h5 {[%clk 0:02:03.6]} 18. h3
{[%clk 0:02:25.9]} 18... h4 {[%clk 0:01:58]} 19. b3 {[%clk 0:02:13.2]} 19... Nh5
{[%clk 0:01:53.6]} 20. Na4 {[%clk 0:01:46.3]} 20... Ng3 {[%clk 0:01:50]} 21. Qe1
{[%clk 0:01:36.5]} 21... Qa6 {[%clk 0:01:44.6]} 22. Nxb6 {[%clk 0:01:19.6]}
22... Ne2+ {[%clk 0:01:44.4]} 23. Kh1 {[%clk 0:01:17.8]} 23... Nxc1 {[%clk
0:01:41.9]} 24. Qxc1 {[%clk 0:01:12.8]} 24... Rxb6 {[%clk 0:01:38.4]} 25. Qc2
{[%clk 0:01:12.3]} 25... Rb7 {[%clk 0:01:30.7]} 26. f4 {[%clk 0:01:07.1]} 26...
Nd7 {[%clk 0:01:30.2]} 27. Nd3 {[%clk 0:01:07.5]} 27... c4 {[%clk 0:01:15.2]}
28. bxc4 {[%clk 0:00:46.7]} 28... Rxb1+ {[%clk 0:01:14.2]} 29. Qxb1 {[%clk
0:00:47.6]} 29... Qxc4 {[%clk 0:01:14.7]} 30. Nf2 {[%clk 0:00:47.5]} 30... Qe2
{[%clk 0:01:10.4]} 31. Ba7 {[%clk 0:00:39.3]} 31... Bh6 {[%clk 0:01:03.8]} 32.
Qc1 {[%clk 0:00:15.2]} 32... Ne5 {[%clk 0:00:53.4]} 33. Bd4 {[%clk 0:00:12.5]}
33... Kh7 {[%clk 0:00:29.5]} 34. a4 {[%clk 0:00:10.7]} 34... Nd3 {[%clk
0:00:15.5]} 35. Qd1 {[%clk 0:00:05.9]} 35... Nxf2+ {[%clk 0:00:14.4]} 0-1